Cogmind - Beta 16 @@@ ROGUE MODE // 2026.02.13 @ 11:53:45 Player: rootmos Result: Destroyed by P-60 Hacker with Shock Rifle Performance ------------- Evolutions (4) 2000 Regions Visited (5) 1000 Robots Destroyed (106) 530 Value Destroyed (3859) 3859 Prototype IDs (9) 180 Alien Tech Used (0) 0 Bonus (174) 174 TOTAL SCORE: 7743 Bonus ------- High Alert Combat Kills 174 Cogmind --------- Core Integrity 0/850 Matter 252/300 Energy 80/100 System Corruption 7% Temperature Cool (4) Movement Core (400) Ox7 Location -6/Factory Parts ------- > --- POWER (2) -------- (None) > --- PROPULSION (4) --- (None) > --- UTILITY (7) ------ Large Storage Unit Improved Signal Interpreter Target Analyzer > --- WEAPON (2) ------- Heavy Laser > --- INVENTORY (15) --- Light Angular Momentum Engine Titanium Leg Improved Heat Sink Trap Scanner Peak State ------------ > --- POWER ------------ Light Angular Momentum Engine Fission Core > --- PROPULSION ------- Medium Treads Flexi-carbon Leg Flexi-carbon Leg Advanced Myomer Leg > --- UTILITY ---------- Improved Cooling System Large Storage Unit Improved Trap Scanner Improved Sensor Array Target Analyzer Advanced ECM Suite EM Disruption Field > --- WEAPON ----------- Force Rifle Improved KE Penetrator > --- INVENTORY -------- Improved Deuterium Engine Improved Deuterium Engine Reinforced Deuterium Engine Micro Nuclear Core Micro Nuclear Core Titanium Leg Improved Heat Sink Trap Scanner Force Rifle Improved EM Pulse Cannon Gauss Rifle Gauss Rifle Rocket Launcher Impact Mace Impact Mace [Rating: 74] Favorites ----------- Power Micro Nuclear Core Engine Reinforced Deuterium Engine Power Core Micro Nuclear Core Propulsion Aluminum Leg Treads Light Treads Leg Aluminum Leg Utility Large Storage Unit Device Advanced ECM Suite Storage Large Storage Unit Processor Advanced Visual Processing Unit Protection Improved Medium Armor Plating Weapon Gauss Rifle Energy Gun Force Rifle Energy Cannon Advanced Beam Cannon Ballistic Gun Gauss Rifle Ballistic Cannon Battle Cannon Launcher Heavy Rocket Launcher Impact Weapon Impact Mace Slashing Weapon Ripper Build | -11 -10 -10 -8 -7 -6 ------- Run | Yrd Mat Sub Mat Fac Fac Slots Evolved 8 | . . . 4 2 2 Power 1 | . . . . . 1 Propulsion 2 | . . . 1 1 . Utility 5 | . . . 3 1 1 Weapon . | . . . . . . Parts Attached 123 | . 4 13 31 47 28 Power 22 | . 2 3 6 4 7 Engine 17 | . 2 3 5 2 5 Core 5 | . . . 1 2 2 Reactor . | . . . . . . Propulsion 24 | . 1 . 9 9 5 Treads 8 | . . . 6 2 . Leg 16 | . 1 . 3 7 5 Wheel . | . . . . . . Hover . | . . . . . . Flight . | . . . . . . Utility 38 | . 1 3 10 15 9 Device 25 | . . 1 6 11 7 Storage 1 | . . . 1 . . Processor 6 | . 1 . 2 1 2 Hackware . | . . . . . . Protection 6 | . . 2 1 3 . Artifact . | . . . . . . Weapon 39 | . . 7 6 19 7 Energy Gun 11 | . . 1 . 7 3 Energy Cannon 7 | . . 1 2 2 2 Ballistic Gun 14 | . . 4 3 6 1 Ballistic Cannon 1 | . . 1 . . . Launcher 2 | . . . . 1 1 Special Weapon . | . . . . . . Impact Weapon 3 | . . . . 3 . Slashing Weapon 1 | . . . 1 . . Piercing Weapon . | . . . . . . Special Melee Weapon . | . . . . . . Unidentified Prototypes 7 | . . . 2 5 . Corrupted Parts 1 | . . . . 1 . System Corruption 1 | . . . . 1 . Parts Lost 76 | . . 1 16 31 28 Power 10 | . . . 3 2 5 Propulsion 21 | . . . 6 10 5 Utility 28 | . . 1 6 11 10 Weapon 17 | . . . 1 8 8 Highest Loss Streak 22 | . . 1 5 13 22 To Critical Strikes . | . . . . . . Average Backups 10 | 5 6 5 5 13 14 Power 2 | 1 1 1 1 3 4 Propulsion . | 3 2 1 . . . Utility 2 | . . . . 4 2 Weapon 4 | 1 2 2 3 5 6 Tool/Special . | . . . . . . Unused Backups 28 | . 2 6 7 6 7 Power 8 | . 2 . 3 1 2 Propulsion 1 | . . . . . 1 Utility 5 | . . . . 3 2 Weapon 14 | . . 6 4 2 2 Tool/Special . | . . . . . . Average Slot Usage (%) 88 | . 91 90 82 88 92 Engine 7 | . 14 14 7 5 4 Core 1 | . . . . 1 7 Treads 9 | . . . 13 15 3 Leg 13 | . 28 28 6 6 19 Device 17 | . . 1 21 20 24 Storage 5 | . 14 4 1 7 6 Processor 6 | . 5 4 3 8 11 Protection 5 | . . 9 8 5 . Energy Gun 3 | . 14 6 . 2 5 Energy Cannon 4 | . . 6 6 4 . Ballistic Gun 7 | . 14 12 6 4 5 Slashing Weapon 1 | . . . 4 . . Peak Build Rating 74 | 6 7 14 31 57 74 Average Rating 32 | 6 6 10 23 36 65 On Entrance 20 | 6 6 7 14 30 57 Avg Prop Armor Cover (%) 7 | . . . 6 7 7 Naked Turns . | . . . . . . Heaviest Build 61 | 12 12 34 43 58 61 Greatest Support 88 | 20 20 20 60 80 88 Greatest Overweight (x) 17 | . . 1 7 17 17 Average Overweight (x) . | . . . . 1 . Largest Inventory Capacity 15 | 8 8 8 15 15 15 Average Capacity 11 | 8 8 5 6 15 15 Most Carried 15 | 5 8 8 11 15 15 Average Carried 10 | 5 7 5 5 13 14 Final Capacity 15 | 8 8 5 15 15 15 Final Carried 15 | 4 8 5 11 15 4 Class Distribution -------------------- 51% | Scavenger-Mutant 45% | Mutant 3% | Subdweller-Mutant Dominant Class ---------------- Mutant | -10/Materials Mutant | -10/Subcaves Scavenger-Mutant | -8/Materials Scavenger-Mutant | -7/Factory Mutant | -6/Factory Resources | -11 -10 -10 -8 -7 -6 ----------- Run | Yrd Mat Sub Mat Fac Fac Matter Collected 2453 | 200 48 175 580 937 513 Remotely . | . . . . . . Salvage Created 4248 | . 63 318 1125 1109 1633 Parts 249 | . 5 18 61 69 96 Haulers Intercepted 1 | . . . . . 1 Recyclers Shooed 1 | . . . . . 1 Parts Field Recycled . | . . . . . . Retrieved Matter . | . . . . . . Parts Self-Destructed 4 | . . 4 . . . Prevented . | . . . . . . Parts Restored . | . . . . . . Kills | -11 -10 -10 -8 -7 -6 ------- Run | Yrd Mat Sub Mat Fac Fac Combat Hostiles Destroyed 89 | . 4 8 28 22 27 Melee 16 | . . . 11 5 . Guns 55 | . 4 1 10 17 23 Cannons 15 | . . 6 7 . 2 AOE 2 | . . . . . 2 Classes Destroyed 14 | . 1 2 4 5 2 Worker 7 | . . . . 2 5 Builder 5 | . . . . 1 4 Hauler 1 | . . . . . 1 Recycler 2 | . . . 1 . 1 Operator 1 | . . . . 1 . Watcher 1 | . . . . . 1 Swarmer 29 | . 4 . 11 3 11 Grunt 28 | . . 2 8 10 8 Sentry 8 | . . . 6 1 1 Specialist 2 | . . . 2 . . Hunter 6 | . . . 1 1 4 Programmer 9 | . . . . 6 3 Heavy 1 | . . . . 1 . Subdweller 6 | . . 6 . . . Best Kill Streak 12 | . 2 2 4 4 12 Combat Bots Only 11 | . 2 2 4 4 11 Max Kills in Single Turn 5 | . 1 1 2 2 5 Gunslinging 1 | . . . . 1 . Exploded 2 | . . . . . 2 Melee 1 | . . . 1 1 . Uniques/NPCs Destroyed . | . . . . . . Combat | -11 -10 -10 -8 -7 -6 -------- Run | Yrd Mat Sub Mat Fac Fac Hostile Shots Fired 1066 | . 32 43 217 426 348 Missed 317 | . 11 13 52 137 104 Hits 749 | . 21 30 165 289 244 Projectile 749 | . 21 30 165 289 244 AOE 2 | . . . . . 2 Critical Strikes 29 | . . 1 10 9 9 Part Disruptions 3 | . . . . 1 2 Damage Taken 11245 | . 158 661 2362 4186 3878 Core 1953 | . 20 74 355 653 851 Absorbed by Shields 241 | . . . . 241 . Core Remaining (%) 50 | 100 . 62 35 6 . Volleys Fired 255 | . 15 29 62 74 75 Largest 2 | . 2 2 2 2 2 Hottest 149 | . 60 108 100 143 149 Shots Fired 462 | . 22 58 103 135 144 Gun 365 | . 22 36 63 115 129 Cannon 92 | . . 22 40 18 12 Launcher 5 | . . . . 2 3 Special . | . . . . . . Kinetic 233 | . 15 29 57 62 70 Thermal 156 | . 7 29 46 15 59 Explosive 5 | . . . . 2 3 Electromagnetic 68 | . . . . 56 12 Robot Hit Streak 17 | . 2 14 17 8 8 Robot Miss Streak 6 | . 3 2 6 6 6 Penetration Max 1 | . . . . 1 1 Secondary Targets 4 | . . . . 3 1 Max Gunslinging Chain 1 | . . . . 1 1 Shots Hit Robots 330 | . 7 40 101 96 86 Core Hits 184 | . 6 12 40 54 72 Critical Kills 8 | . . 1 1 . 6 Critical Parts Destroyed 11 | . . . 1 . 10 Critical Strikes 25 | . . 1 5 1 18 Meltdown 1 | . . 1 . . . Destroy 18 | . . . 2 . 16 Corrupt 3 | . . . . 1 2 Sever 3 | . . . 3 . . Melee Attacks 70 | . . . 49 21 . Impact 2 | . . . . 2 . Slashing 68 | . . . 49 19 . Piercing . | . . . . . . Sneak Attacks . | . . . . . . Combat Hostiles . | . . . . . . Follow-up Attacks . | . . . . . . Damage Inflicted 9428 | . 70 717 2571 2277 3793 Guns 4470 | . 70 265 662 1323 2150 Cannons 1414 | . . 452 650 218 94 Explosions 1755 | . . . . 206 1549 Melee 1779 | . . . 1259 520 . Ramming 10 | . . . . 10 . Kinetic 2908 | . 47 190 577 746 1348 Thermal 2666 | . 23 527 735 152 1229 Explosive 1328 | . . . . 206 1122 Electromagnetic 737 | . . . . 643 94 Impact 55 | . . . . 55 . Slashing 1724 | . . . 1259 465 . Piercing . | . . . . . . Highest Corruption 17 | . . . . 17 6 Average Corruption 7 | . . . . 8 1 Corruption Purged . | . . . . . . Corruption Blocked . | . . . . . . Effects 84 | . . . . 78 6 Message Errors 18 | . . . . 18 . Matter Fused 19 | . . . . 18 1 Heat Flow Errors 11 | . . . . 11 . Energy Discharges 11 | . . . . 11 . Parts Rejected 1 | . . . . 1 . Parts Fused 2 | . . . . 2 . Data Loss (minor) 11 | . . . . 9 2 Data Loss (major) 5 | . . . . 3 2 Misfires 3 | . . . . 2 1 Weapon Failures 3 | . . . . 3 . Overload Shots . | . . . . . . Overflow Damage 117 | . . . 60 . 57 Projectiles 10 | . . . 10 . . Explosions 57 | . . . . . 57 Melee 50 | . . . 50 . . Knockbacks . | . . . . . . Impact . | . . . . . . Kinetic . | . . . . . . Secondary . | . . . . . . Self-Inflicted Damage 32 | . . . . 32 . Shots 2 | . . . . 2 . Rammed 1 | . . . . 1 . Targets Rammed 1 | . . . . 1 . Kicked . | . . . . . . Crushed . | . . . . . . Highest Temperature 396 | . 40 61 193 396 375 Average Temperature 70 | . 17 25 58 72 138 Received Heat Transfer 2448 | . . 138 927 888 495 Effects 1 | . . . . . 1 Shutdowns 1 | . . . . . 1 Siege Activations . | . . . . . . Martial Activations . | . . . . . . Shielding Activations . | . . . . . . Robots Disrupted . | . . . . . . Combat Hostiles . | . . . . . . Robots Corrupted . | . . . . . . Combat Hostiles . | . . . . . . Parts Fried 3 | . . . . 3 . Impact Corruptions . | . . . . . . Robots Melted 1 | . . 1 . . . Combat Hostiles 1 | . . 1 . . . Parts Melted 5 | . . . 2 . 3 Heat Transferred 3595 | . 50 767 1099 298 1381 Parts Sabotaged . | . . . . . . Parts Stolen . | . . . . . . Parts Stripped . | . . . . . . Power Chain Reactions . | . . . . . . Alert | -11 -10 -10 -8 -7 -6 ------- Run | Yrd Mat Sub Mat Fac Fac Maximum Alert Level 2 | . . . 1 . 2 Low Security (%) 92 | 100 100 . 93 100 68 Level 1 3 | . . . 6 . 9 Level 2 4 | . . . . . 22 Level 3 . | . . . . . . Level 4 . | . . . . . . Level 5 . | . . . . . . High Security . | . . . . . . Max Security . | . . . . . . Peak Influence 682 | . 50 . 223 153 682 Initial 70 | . . . . 70 34 Average 93 | . 15 . 106 61 184 Influence Increases 2828 | . 149 50 779 696 1154 Destroy 0b10 Robot/C 1660 | . 80 40 560 440 540 Destroy 0b10 Robot/NC 85 | . . . 5 20 60 Destroy Leader 374 | . 20 10 130 130 84 Successful Hack 23 | . 4 . . . 19 Disable Machine 120 | . . . 45 15 60 Anti-Garrison Action 150 | . . . . . 150 Destroy Structure 71 | . . . 9 31 31 Partial Spotted 15 | . . . 15 . . Lose Combat Pursuer 330 | . 45 . 15 60 210 Influence Decreases 2258 | . 139 60 623 782 654 Entered New Map 128 | . . 6 . 86 36 Time Decay 1370 | . 139 44 463 386 338 Lost Part 760 | . . 10 160 310 280 Squads Dispatched 24 | . . . 4 11 9 Investigation 2 | . . . . 1 1 Extermination 8 | . . . . 6 2 Reinforcement 12 | . . . 4 4 4 Assault 2 | . . . . . 2 Garrison . | . . . . . . Intercept . | . . . . . . Searches Triggered . | . . . . . . Construction Impeded 2 | . . . . . 2 Haulers Reinforced . | . . . . . . Active Scanning Responses . | . . . . . . Cargo Convoy Interrupts 2 | . . . . 1 1 Stealth | -11 -10 -10 -8 -7 -6 --------- Run | Yrd Mat Sub Mat Fac Fac Distress Signals 14 | . 2 . 5 2 5 Communications Jammed . | . . . . . . Distress Signals . | . . . . . . Times Spotted 187 | . 15 8 58 45 61 Peak Tracking Total 12 | . 5 2 6 5 12 Tactical Retreats 32 | . 2 . 15 4 11 ECM-based Alert Blocks 26 | . . . 17 2 7 Traps | -11 -10 -10 -8 -7 -6 ------- Run | Yrd Mat Sub Mat Fac Fac Traps Triggered 4 | . . 1 . 2 1 Indirectly . | . . . . . . Trap Hack Attempts . | . . . . . . Triggered . | . . . . . . Disarmed . | . . . . . . Reprogrammed . | . . . . . . Reused . | . . . . . . Traps Extracted . | . . . . . . Installed . | . . . . . . Triggered . | . . . . . . Machines | -11 -10 -10 -8 -7 -6 ---------- Run | Yrd Mat Sub Mat Fac Fac Machines Disabled 9 | . . . 3 1 5 Max in Single Turn 4 | . . . 1 1 4 Garrison Access 1 | . . . . . 1 Machines Repaired . | . . . . . . Machines Dismantled . | . . . . . . Machines Sabotaged . | . . . . . . Overloaded Fab Kills . | . . . . . . Hacking | -11 -10 -10 -8 -7 -6 --------- Run | Yrd Mat Sub Mat Fac Fac Machines Accessed 7 | . 1 . . 3 3 Terminals 3 | . 1 . . . 2 Fabricators . | . . . . . . Repair Stations . | . . . . . . Recycling Units . | . . . . . . Scanalyzers 4 | . . . . 3 1 Garrison Access . | . . . . . . Total Hacks 13 | . 2 . . 6 5 Successful 8 | . 2 . . 2 4 Failed 4 | . . . . 3 1 Catastrophic . | . . . . . . Database Lockouts 1 | . . . . 1 . Manual . | . . . . . . Terminals 4 | . 2 . . . 2 Fabricators . | . . . . . . Repair Stations . | . . . . . . Recycling Units . | . . . . . . Scanalyzers 9 | . . . . 6 3 Garrison Access . | . . . . . . Terminal Hacks 4 | . 2 . . . 2 Prototype ID Bank 1 | . 1 . . . . Branch Access Points 1 | . . . . . 1 Emergency Access Points 1 | . 1 . . . . Locate Traps 1 | . . . . . 1 Fabricator Hacks . | . . . . . . Repair Station Hacks . | . . . . . . Recycling Unit Hacks . | . . . . . . Scanalyzer 4 | . . . . 2 2 Retrieve Study 4 | . . . . 2 2 Garrison Access Hacks . | . . . . . . Unauthorized Hacks . | . . . . . . Terminals . | . . . . . . Fabricators . | . . . . . . Repair Stations . | . . . . . . Recycling Units . | . . . . . . Scanalyzers . | . . . . . . Garrison Access . | . . . . . . Data Cores Recovered . | . . . . . . Used . | . . . . . . Hacking Detections 3 | . . . . 1 2 Full Trace Events 1 | . . . . . 1 Feedback Events . | . . . . . . Feedback Blocked . | . . . . . . Robot Schematics Acquired . | . . . . . . Robots Built . | . . . . . . Authchips . | . . . . . . Time . | . . . . . . Total Robot Build Rating . | . . . . . . Part Schematics Acquired . | . . . . . . Parts Built . | . . . . . . Authchips . | . . . . . . Time . | . . . . . . Total Part Build Rating . | . . . . . . Part Studies Acquired 4 | . . . . 2 2 Parts Repaired . | . . . . . . Time . | . . . . . . Parts Recycled . | . . . . . . Recycled Matter . | . . . . . . Retrieved Matter . | . . . . . . Retrieved Components . | . . . . . . Parts Scanalyzed . | . . . . . . Part Schematics Acquired . | . . . . . . Parts Damaged . | . . . . . . Bothacking | -11 -10 -10 -8 -7 -6 ------------ Run | Yrd Mat Sub Mat Fac Fac Used RIF Installer . | . . . . . . Robots Hacked . | . . . . . . Non-combat . | . . . . . . Combat . | . . . . . . Robot Hacks Applied . | . . . . . . Relay Couplers Released . | . . . . . . Fabnet Peak Effective % . | . . . . . . Robots Rewired . | . . . . . . Allies Hacked . | . . . . . . Hacks Repelled . | . . . . . . Allies | -11 -10 -10 -8 -7 -6 -------- Run | Yrd Mat Sub Mat Fac Fac Total Allies . | . . . . . . Largest Group . | . . . . . . Highest-Rated Group . | . . . . . . Highest-Rated Ally . | . . . . . . Total Orders . | . . . . . . Ally Attacks . | . . . . . . Total Damage . | . . . . . . Kills . | . . . . . . Allies Corrupted . | . . . . . . Allies Melted . | . . . . . . Intel | -11 -10 -10 -8 -7 -6 ------- Run | Yrd Mat Sub Mat Fac Fac Active Infowar (turns) 5938 | . . . 1477 3270 1191 Optics 4283 | . . . 628 3270 385 Sensors 3041 | . . . 123 2335 583 IFF 198 | . . . . . 198 Traps 752 | . . . . . 752 ECM 1178 | . . . 849 190 139 Robot Analysis Total . | . . . . . . Derelict Logs Recovered 1 | . . 1 . . . Drone Launches . | . . . . . . Drone Recoveries . | . . . . . . Exploration | -11 -10 -10 -8 -7 -6 ------------- Run | Yrd Mat Sub Mat Fac Fac Turns Passed 7879 | 1 387 1365 1644 3270 1212 Spaces Moved 3569 | 1 273 729 660 1284 622 Core 42 | . . . 1 39 2 Treads 1320 | . . . 506 814 . Legs 2207 | 1 273 729 153 431 620 Wheels . | . . . . . . Hover . | . . . . . . Flight . | . . . . . . Fastest Speed 120 | 120 120 120 120 120 120 Average Speed 173 | 120 120 153 170 212 142 Slowest Speed 900 | 120 120 190 400 900 900 Overloaded Moves . | . . . . . . Propulsion Burnouts . | . . . . . . Robots Hopped . | . . . . . . Potential Cave-ins . | . . . . . . Cave-ins Triggered . | . . . . . . Exploration Rate (%) 30 | 2 50 41 50 27 15 Regions Visited 5 Branch Regions 1 Pre-discovered Areas . | . . . . . . Known Exits Taken . | . . . . . . Unknown Exits Taken 5 | 1 1 1 1 1 . Scrap Searched 7 | . . 7 . . . Spaces Dug 3 | . . . . 3 . Terrain Destroyed 63 | . . 3 8 26 26 Melee 2 | . . . . 2 . Projectile 20 | . . 3 8 1 8 AOE 41 | . . . . 23 18 Terrain Rammed . | . . . . . . Walls Destroyed . | . . . . . . Machines Disabled . | . . . . . . Actions | -11 -10 -10 -8 -7 -6 --------- Run | Yrd Mat Sub Mat Fac Fac Total 4715 | 2 314 924 1008 1657 810 Wait 537 | . 15 139 166 175 42 Move 3564 | . 272 728 659 1283 622 Hop . | . . . . . . Pick Up 68 | . 5 4 20 27 12 Fast Attach 40 | . 1 3 14 15 7 Attach 38 | . . . 6 18 14 Detach 2 | . . 1 . . 1 Swap 77 | . 3 10 19 31 14 Drop 56 | 2 3 8 13 12 18 Fire 255 | . 15 29 62 74 75 Melee 70 | . . . 49 21 . Ram . | . . . . . . Kick . | . . . . . . Crush 1 | . . . . 1 . Escape Stasis 5 | . . . . . 5 Rewire . | . . . . . . Trap . | . . . . . . Miscellaneous 2 | . . 2 . . . Route ------- -11/Scrapyard -10/Materials (discovered 3 exits: [*Mat] / [*Min] / [*Sub]) -10/Subcaves -8/Materials (discovered 3 exits: *Fac / *Sto x2) -7/Factory -6/Factory (discovered 4 exits: Low x2 / Ext x2) History --------- Turn | Location | Event 2 | -11/Scrapyard | Discovered new exit (range 0) 2 | -11/Scrapyard | Entered Materials 155 | -10/Materials | Discovered new exit (range 10) 310 | -10/Materials | Discovered new exit (range 16) 313 | -10/Materials | Build established: Mutant 315 | -10/Materials | Discovered new exit (range 7) 389 | -10/Materials | Entered Subcaves 390 | -10/Subcaves | A swath of the cavern ceiling suddenly collapsed 416 | -10/Subcaves | Curiously followed by a Cobbler waking with a query about "LVR3C" 481 | -10/Subcaves | A swath of the cavern ceiling suddenly collapsed 564 | -10/Subcaves | Learned 4 Materials zone layouts 1498 | -10/Subcaves | Shifting Twisted Machinery released Ripper 1499 | -10/Subcaves | Shifting Twisted Machinery released Battle Rifle 1499 | -10/Subcaves | Discovered new exit (range 14) 1754 | -10/Subcaves | Entered Materials 1754 | -8/Materials | Evolved 4 slots: Propulsion x1, Utility x3 1755 | -8/Materials | Identified exit to Storage 1865 | -8/Materials | Lost 3 parts (1p2n) 2774 | -8/Materials | Lost 5 parts (1p2n2u) 2867 | -8/Materials | Core integrity fell below 50% 2900 | -8/Materials | Lost 4 parts (1p1n1u1w) 3064 | -8/Materials | Build established: Scavenger-Mutant 3200 | -8/Materials | Discovered exit to Storage (range 7) 3253 | -8/Materials | Discovered new exit (range 10) 3398 | -8/Materials | Entered Factory 3398 | -7/Factory | Evolved 2 slots: Propulsion x1, Utility x1 3705 | -7/Factory | Central database locked down 4635 | -7/Factory | Lost 3 parts (1n1u1w) 4764 | -7/Factory | Lost 4 parts (1n2u1w) 4978 | -7/Factory | Core integrity fell below 50% 5045 | -7/Factory | Lost 8 parts (4n4u) 5232 | -7/Factory | Cargo convoy interrupted 5590 | -7/Factory | Discovered new exit (range 16) 6067 | -7/Factory | System corruption reached 10% 6069 | -7/Factory | Core integrity fell below 20% 6155 | -7/Factory | Lost 13 parts (2p3n3u5w) 6668 | -7/Factory | Entered another Factory area 6668 | -6/Factory | Evolved 2 slots: Power x1, Utility x1 6852 | -6/Factory | Build established: Mutant 7417 | -6/Factory | Lost 3 parts (1p2u) 7651 | -6/Factory | Identified exit to Lower Caves 7651 | -6/Factory | Identified exit to Extension 7682 | -6/Factory | Build established: Scavenger-Mutant 7811 | -6/Factory | Destroyed 11 combat bots 7829 | -6/Factory | Cargo convoy interrupted 7850 | -6/Factory | Core integrity fell below 50% 7863 | -6/Factory | Core integrity fell below 20% 7880 | -6/Factory | Destroyed by P-60 Hacker with Shock Rifle Last Messages --------------- 07868_ Slug penetrates X-67 Chaingunner. 07868_ P-60 Hacker resets X-72 Disruptor, system corruption cleaned. 07868_ K-01 Serf collects debris. 07869_ Penetrated by Slug. 07869_ Mic. Nuclear Core destroyed. 07869_ P-60 Hacker resets X-62 Marksman, system corruption cleaned. 07869_ K-01 Serf collects debris. 07869_ P-60 Hacker resets X-67 Chaingunner, system corruption cleaned. 07869_ K-01 Serf collects debris. 07870_ The unstable cave ceiling collapses. 07870_ Slug penetrates Wall. 07871_ K-01 Serf collects debris. 07875_ P-60 Hacker resets X-62 Marksman, system corruption cleaned. 07875_ K-01 Serf collects debris. 07879_ Penetrated by Slug. 07879_ Gauss Rifle+ destroyed. Map ----- +----------------------------------------------------+ | ?????????????????????????????????????????????????? | | ?????????????????????????????????????????????????? | | ?????????????????????????????????????????????????? | | ?????????????????????????????????????????????????? | | ?????????????????????????????????????????????????? | | ?????????????????????????????????????????????????? | | ?????????????????????????????????????????????????? | | ?????????????????????????????????????????????????? | | ?????????????????????????????????????????????????? | | ?????????????????????????????????????????????????? | | ?????????????????????????????????????????????????? | | ?????????????????????????????????????????????????? | | ?????????????????????????????????????????????????? | | ?????????????????????????????????????????????????? | | ?????????????????????????????????????????????????? | | ?????????????????????????????????????????????????? | | ?????????????????????????????????????????????????? | | ?????????????????????????????????????????????????? | | ?????????????????????????????????????????????????? | | ??????????????????????????????????###??##????????? | | ????????????????????????????????? ? #????????? | | ?????????????????????????????####/# #????????? | | ????????????????????????????##!%% % # #####????? | | ???????????????????????????# #!/ ! %* % %" ??? | | ???????????????#### #########;%==kp| !=###??????? | | ???????????????# ^^ @ =x=% [=%* #????????? | | ???????????????# #######%x= xi= [ #????????? | | ??????????????????????????![%!% p = #????????? | | ??????????????????????????##=#== =% # #????????? | | ???????????????????????????#=#[ k! #??????????? | | ???????????????????????????# # k #??????????? | | ???????????????????????????# ##########??????????? | | ???????????????????????????# #???????????????????? | | ???????????????????????????# #???????????????????? | | ???????????????????????????# #???????????????????? | | ????????????????????######## #???????????????????? | | ????????????????????# ## ##??????????????????? | | ????????????????????# # #########??????????? | | ????????????????????# / T #????????? | | ????????????????????# # #########??????????? | | ????????????????????# ! ## #########???????????? | | ????????????????????#! ## ## #???????????? | | ????????????????????# ## ## #???????????? | | ????????????????????####### *# """" #???????????? | | ?????????????????# + """" #???????????? | | ????????????????????#######=!=# """" #???????????? | | ??????????????????????????##%## """" #???????????? | | ???????????????????????????#[########????????????? | | ???????????????????????????# #???????????????????? | | ???????????????????????????# #???????????????????? | +----------------------------------------------------+ Best States ------------- Heat Dissipation 83 Coolant Potential 50 Energy Generation 32 Energy Capacity 500 Matter Stores 300 Matter Capacity 300 Sight Range 20 Robot Scan Range 15 Terrain Scan Density 10 ECM Strength 2 Additional Mass Support 9 Armor Coverage 800 Evasion (%) 55 Targeting Accuracy 5 Melee Accuracy 5 Target Analysis 7 Recoil Reduction 4 Kinecelleration 30 Item Schematics ----------------- None Robot Schematics ------------------ None Fabricated ------------ Nothing Repaired ---------- Nothing Studied --------- Deuterium Engine | -7/Factory | Hacked Lgt. Nuclear Core | -7/Factory | Hacked Lgt. Angular Momentum Engine | -6/Factory | Hacked Gauss Rifle | -6/Factory | Hacked Alien Tech Used ----------------- None Achievements -------------- Survival Of The Most Covered Challenges ------------ None Game ------ Seed GaussElectronBeacon Manual? 0 Play Time 02:02:04 Cumulative 112.1 hours Start 2026.02.12 @ 19:56:46 End 2026.02.13 @ 11:53:45 Sessions 9 Manual Loads 0 Difficulty Rogue Special Mode None Game No. 57 Rogue 22 Adventurer 0 Explorer 35 Win Type - Total 1 Types 1/0/0/0/0/0/0/0/0/0 Lore% 31 Gallery% 36 Achievement% 28 Wizard Run 0 Options --------- Layout 0 ASCII 1 Keyboard 1 Movement Vi Keybinds 1 Fullscreen 0 Font 20/SmallcapsGlow Map View 50x62 Zoom Use 0% Tactical HUD 1 Map Filters NONE Filters NONE Steam 0 RUN: 725e0caf-d238-40da-a2ba-8af0381c64ba